Department Family,Entity,Date,Expense type,Expense area,Supplier,Transaction number,Amount
BEIS,ACAS,01/12/2021,SOFTWARE & LICENCES,DELIVERY,TECHDIO A/S,POIN74,2070
BEIS,ACAS,01/12/2021,MANAGED SERVICE Off-PAYROLL WK,DELIVERY,DELOITTE MCS LTD,POIN75,71280
BEIS,ACAS,01/12/2021,AGENCY STAFF,ODHR,ALEXANDER MANN SOLUTIONS LTD,POIN79,2520.24
BEIS,ACAS,01/12/2021,CONTRACTOR OFF-PAYROLL IN IR35,DELIVERY,ALEXANDER MANN SOLUTIONS LTD,POIN80,7083.24
BEIS,ACAS,01/12/2021,CONTRACTOR OFF-PAYROLL IN IR35,DELIVERY,ALEXANDER MANN SOLUTIONS LTD,POIN81,3780.36
BEIS,ACAS,03/12/2021,TRAINERS & GUEST SPEAKERS,ODHR,UNIVERSITY COLLEGE LONDON,POIN82,4708
BEIS,ACAS,06/12/2021,EXTERNAL LEARNING,ODHR,PSYSOFT LTD,POIN83,316.8
BEIS,ACAS,01/12/2021,SYSTEM/EQUIPMENT MAINTENANCE,DDAT,RESTORE TECHNOLOGY,POIN84,936
BEIS,ACAS,25/11/2021,PROFESSIONAL FEES,DDAT,ATOS IT SERVICES UK LIMITED,POIN85,4930.79
BEIS,ACAS,02/12/2021,PROFESSIONAL FEES,DDAT,BIG BLUE DOOR,POIN86,900
BEIS,ACAS,07/12/2021,AGENCY STAFF,FEP,MICHAEL PAGE,POIN87,1034.21
BEIS,ACAS,01/12/2021,COMPUTER HARDWARE,DDAT,RESTORE TECHNOLOGY,POIN88,780
BEIS,ACAS,06/12/2021,TRAINERS & GUEST SPEAKERS,ODHR,EUREKA ACCELERATED LEARNING LIMITED,POIN90,374.4
BEIS,ACAS,01/12/2021,AGENCY STAFF,NORTH&MID,ALEXANDER MANN SOLUTIONS LTD,PINV90,508.7
BEIS,ACAS,01/12/2021,AGENCY STAFF,NORTH&MID,ALEXANDER MANN SOLUTIONS LTD,PINV91,638.03
BEIS,ACAS,01/12/2021,AGENCY STAFF,NORTH&MID,ALEXANDER MANN SOLUTIONS LTD,PINV92,517.32
BEIS,ACAS,31/10/2021,MANAGED SERVICE Off-PAYROLL WK,DELIVERY,OPENCAST SOFTWARE EUROPE LTD,POIN92,16083.6
BEIS,ACAS,25/11/2021,SOFTWARE & LICENCES,DDAT,ATOS IT SERVICES UK LIMITED,POIN93,12233.89
BEIS,ACAS,03/12/2021,OCCUPATIONAL HEALTH SERVICE,ODHR,HEALTH MANAGEMENT LTD,PINV94,3660
BEIS,ACAS,02/12/2021,PERSONAL EXPENSE,SOUTH&LONDON,NAME / DESCRIPTION WITHHELD,EXPS94,230.4
BEIS,ACAS,02/12/2021,PERSONAL EXPENSE,SOUTH&LONDON,NAME / DESCRIPTION WITHHELD,EXPS94,14.4
BEIS,ACAS,02/12/2021,PERSONAL EXPENSE,SOUTH&LONDON,NAME / DESCRIPTION WITHHELD,EXPS94,10
BEIS,ACAS,02/12/2021,PERSONAL EXPENSE,SOUTH&LONDON,NAME / DESCRIPTION WITHHELD,EXPS94,40
BEIS,ACAS,02/12/2021,PERSONAL EXPENSE,SOUTH&LONDON,NAME / DESCRIPTION WITHHELD,EXPS94,5
BEIS,ACAS,02/12/2021,PERSONAL EXPENSE,SOUTH&LONDON,NAME / DESCRIPTION WITHHELD,EXPS94,20
BEIS,ACAS,20/10/2021,DILAPIDATION CHARGES,FEP,GOVERNMENT PROPERTY AGENCY,POIN94,8400.04
BEIS,ACAS,02/12/2021,PERSONAL EXPENSE,NORTH&MID,NAME / DESCRIPTION WITHHELD,EXPS95,271.8
BEIS,ACAS,02/12/2021,PERSONAL EXPENSE,NORTH&MID,NAME / DESCRIPTION WITHHELD,EXPS95,90
BEIS,ACAS,02/12/2021,PERSONAL EXPENSE,NORTH&MID,NAME / DESCRIPTION WITHHELD,EXPS95,5
BEIS,ACAS,02/12/2021,PERSONAL EXPENSE,NORTH&MID,NAME / DESCRIPTION WITHHELD,EXPS95,20
BEIS,ACAS,02/12/2021,PERSONAL EXPENSE,NORTH&MID,NAME / DESCRIPTION WITHHELD,EXPS95,19.4
BEIS,ACAS,30/11/2021,PROFESSIONAL FEES,DDAT,VERSION 1 SOLUTIONS LTD,POIN95,3918.48
BEIS,ACAS,01/12/2021,AGENCY STAFF,SPPC,ALEXANDER MANN SOLUTIONS LTD,PINV96,777
BEIS,ACAS,22/10/2021,EXTERNAL LEARNING,ODHR,PAULINE HUGHES LIMITED,POIN96,750
BEIS,ACAS,22/10/2021,EXTERNAL LEARNING,ODHR,PAULINE HUGHES LIMITED,POIN96,150
BEIS,ACAS,09/12/2021,AGENCY STAFF,FEP,PORTFOLIO PAYROLL LTD,POIN97,810
BEIS,ACAS,09/12/2021,AGENCY STAFF,ODHR,ALEXANDER MANN SOLUTIONS LTD,POIN98,2520.24
BEIS,ACAS,03/12/2021,VENUE HIRE (REC VAT),SOUTH&LONDON,CALDER CONFERENCES LTD,PINV98,210
BEIS,ACAS,03/12/2021,VENUE HIRE (REC VAT),WALES&MID,CALDER CONFERENCES LTD,PINV98,250
BEIS,ACAS,03/12/2021,CATERING,WALES&MID,CALDER CONFERENCES LTD,PINV98,76
BEIS,ACAS,03/12/2021,CATERING,WALES&MID,CALDER CONFERENCES LTD,PINV98,84
BEIS,ACAS,03/12/2021,VENUE HIRE (REC VAT),WALES&MID,CALDER CONFERENCES LTD,PINV98,950
BEIS,ACAS,03/12/2021,VENUE HIRE (REC VAT),NORTH&MID,CALDER CONFERENCES LTD,PINV98,350
BEIS,ACAS,03/12/2021,CATERING,NORTH&MID,CALDER CONFERENCES LTD,PINV98,119.5
BEIS,ACAS,03/12/2021,CATERING,NORTH&MID,CALDER CONFERENCES LTD,PINV98,75
BEIS,ACAS,03/12/2021,VENUE HIRE (REC VAT),SOUTH&LONDON,CALDER CONFERENCES LTD,PINV98,252
BEIS,ACAS,06/12/2021,PERSONAL EXPENSE,SPPC,NAME / DESCRIPTION WITHHELD,EXPS99,54
BEIS,ACAS,06/12/2021,PERSONAL EXPENSE,SPPC,NAME / DESCRIPTION WITHHELD,EXPS99,25
BEIS,ACAS,06/12/2021,PERSONAL EXPENSE,SPPC,NAME / DESCRIPTION WITHHELD,EXPS99,4.8
BEIS,ACAS,06/12/2021,PERSONAL EXPENSE,SPPC,NAME / DESCRIPTION WITHHELD,EXPS99,11
BEIS,ACAS,06/12/2021,PERSONAL EXPENSE,SPPC,NAME / DESCRIPTION WITHHELD,EXPS99,38.4
BEIS,ACAS,06/12/2021,PERSONAL EXPENSE,SPPC,NAME / DESCRIPTION WITHHELD,EXPS99,4.8
BEIS,ACAS,06/12/2021,PERSONAL EXPENSE,SPPC,NAME / DESCRIPTION WITHHELD,EXPS99,5
BEIS,ACAS,06/12/2021,PERSONAL EXPENSE,SPPC,NAME / DESCRIPTION WITHHELD,EXPS99,4.8
BEIS,ACAS,06/12/2021,PERSONAL EXPENSE,SPPC,NAME / DESCRIPTION WITHHELD,EXPS99,22
BEIS,ACAS,06/12/2021,PERSONAL EXPENSE,SPPC,NAME / DESCRIPTION WITHHELD,EXPS99,5
BEIS,ACAS,06/12/2021,PERSONAL EXPENSE,SPPC,NAME / DESCRIPTION WITHHELD,EXPS99,35
BEIS,ACAS,06/12/2021,PERSONAL EXPENSE,SPPC,NAME / DESCRIPTION WITHHELD,EXPS99,5
BEIS,ACAS,06/12/2021,PERSONAL EXPENSE,SPPC,NAME / DESCRIPTION WITHHELD,EXPS99,2.4
BEIS,ACAS,06/12/2021,PERSONAL EXPENSE,SPPC,NAME / DESCRIPTION WITHHELD,EXPS99,15
BEIS,ACAS,06/12/2021,PERSONAL EXPENSE,SPPC,NAME / DESCRIPTION WITHHELD,EXPS99,33
BEIS,ACAS,06/12/2021,PERSONAL EXPENSE,SPPC,NAME / DESCRIPTION WITHHELD,EXPS99,35
BEIS,ACAS,06/12/2021,PERSONAL EXPENSE,SPPC,NAME / DESCRIPTION WITHHELD,EXPS99,25.03
BEIS,ACAS,06/12/2021,PERSONAL EXPENSE,SPPC,NAME / DESCRIPTION WITHHELD,EXPS99,5
BEIS,ACAS,06/12/2021,PERSONAL EXPENSE,SPPC,NAME / DESCRIPTION WITHHELD,EXPS99,2.4
BEIS,ACAS,06/12/2021,PERSONAL EXPENSE,SPPC,NAME / DESCRIPTION WITHHELD,EXPS99,22
BEIS,ACAS,06/12/2021,PERSONAL EXPENSE,SPPC,NAME / DESCRIPTION WITHHELD,EXPS99,5
BEIS,ACAS,06/12/2021,PERSONAL EXPENSE,SPPC,NAME / DESCRIPTION WITHHELD,EXPS99,35
BEIS,ACAS,02/12/2021,PROFESSIONAL FEES,DDAT,W3 PARTNERSHIP LTD,PINV99,2312.71
BEIS,ACAS,30/11/2021,MANAGED SERVICE Off-PAYROLL WK,DELIVERY,OPENCAST SOFTWARE EUROPE LTD,POIN99,89481
BEIS,ACAS,10/12/2021,EXTERNAL LEARNING - CSL,ODHR,CABINET OFFICE,POIN100,5400
BEIS,ACAS,06/12/2021,PERSONAL EXPENSE,SOUTH&LONDON,NAME / DESCRIPTION WITHHELD,EXPS101,314.1
BEIS,ACAS,06/12/2021,PERSONAL EXPENSE,SOUTH&LONDON,NAME / DESCRIPTION WITHHELD,EXPS101,40
BEIS,ACAS,06/12/2021,PERSONAL EXPENSE,SOUTH&LONDON,NAME / DESCRIPTION WITHHELD,EXPS101,30
BEIS,ACAS,06/12/2021,PERSONAL EXPENSE,SOUTH&LONDON,NAME / DESCRIPTION WITHHELD,EXPS101,210
BEIS,ACAS,23/11/2021,SOFTWARE & LICENCES,FEP,IRIS SOFTWARE LTD,POIN101,259.99
BEIS,ACAS,23/11/2021,SOFTWARE & LICENCES,FEP,IRIS SOFTWARE LTD,POIN103,974.98
BEIS,ACAS,07/12/2021,PERSONAL EXPENSE,SOUTH&LONDON,NAME / DESCRIPTION WITHHELD,EXPS104,5.9
BEIS,ACAS,07/12/2021,PERSONAL EXPENSE,SOUTH&LONDON,NAME / DESCRIPTION WITHHELD,EXPS104,153
BEIS,ACAS,07/12/2021,PERSONAL EXPENSE,SOUTH&LONDON,NAME / DESCRIPTION WITHHELD,EXPS104,349.2
BEIS,ACAS,07/12/2021,PERSONAL EXPENSE,SOUTH&LONDON,NAME / DESCRIPTION WITHHELD,EXPS104,50
BEIS,ACAS,07/12/2021,PERSONAL EXPENSE,SOUTH&LONDON,NAME / DESCRIPTION WITHHELD,EXPS104,5
BEIS,ACAS,07/12/2021,PERSONAL EXPENSE,SOUTH&LONDON,NAME / DESCRIPTION WITHHELD,EXPS104,15
BEIS,ACAS,07/12/2021,PERSONAL EXPENSE,SOUTH&LONDON,NAME / DESCRIPTION WITHHELD,EXPS104,70
BEIS,ACAS,23/11/2021,SOFTWARE & LICENCES,FEP,IRIS SOFTWARE LTD,POIN104,974.96
BEIS,ACAS,30/11/2021,PUBLICATIONS AND PERIODICALS,STRATEGY,RESTORE RECORDS MANAGEMENT,PINV106,299.47
BEIS,ACAS,30/11/2021,SOFTWARE & LICENCES,FEP,IRIS SOFTWARE LTD,POIN108,597.01
BEIS,ACAS,25/11/2021,PROFESSIONAL FEES,FEP,GOVERNMENT PROPERTY AGENCY,PINV108,5459.35
BEIS,ACAS,25/11/2021,RATES,FEP,GOVERNMENT PROPERTY AGENCY,PINV108,7516.49
BEIS,ACAS,25/11/2021,SERVICE CHARGES,FEP,GOVERNMENT PROPERTY AGENCY,PINV108,5196.6
BEIS,ACAS,25/11/2021,Lease Liability,FEP,GOVERNMENT PROPERTY AGENCY,PINV108,11012.75
BEIS,ACAS,12/11/2021,PERSONAL EXPENSE,CAC,NAME / DESCRIPTION WITHHELD,EXPS109,203.15
BEIS,ACAS,12/11/2021,PERSONAL EXPENSE,CAC,NAME / DESCRIPTION WITHHELD,EXPS109,70
BEIS,ACAS,12/11/2021,PERSONAL EXPENSE,CAC,NAME / DESCRIPTION WITHHELD,EXPS109,10
BEIS,ACAS,02/11/2021,PERSONAL EXPENSE,CAC,NAME / DESCRIPTION WITHHELD,EXPS110,22.5
BEIS,ACAS,02/11/2021,PERSONAL EXPENSE,CAC,NAME / DESCRIPTION WITHHELD,EXPS110,57
BEIS,ACAS,02/11/2021,PERSONAL EXPENSE,CAC,NAME / DESCRIPTION WITHHELD,EXPS110,173.52
BEIS,ACAS,02/11/2021,PERSONAL EXPENSE,CAC,NAME / DESCRIPTION WITHHELD,EXPS110,11.5
BEIS,ACAS,02/11/2021,PERSONAL EXPENSE,CAC,NAME / DESCRIPTION WITHHELD,EXPS110,5
BEIS,ACAS,02/11/2021,PERSONAL EXPENSE,CAC,NAME / DESCRIPTION WITHHELD,EXPS110,35
BEIS,ACAS,29/11/2021,MAINTENANCE (TFM2),FEP,GOVERNMENT PROPERTY AGENCY,PINV111,1156.45
BEIS,ACAS,26/11/2021,PERSONAL EXPENSE,CAC,NAME / DESCRIPTION WITHHELD,EXPS111,22.3
BEIS,ACAS,26/11/2021,PERSONAL EXPENSE,CAC,NAME / DESCRIPTION WITHHELD,EXPS111,178.97
BEIS,ACAS,26/11/2021,PERSONAL EXPENSE,CAC,NAME / DESCRIPTION WITHHELD,EXPS111,5
BEIS,ACAS,26/11/2021,PERSONAL EXPENSE,CAC,NAME / DESCRIPTION WITHHELD,EXPS111,35
BEIS,ACAS,26/11/2021,PERSONAL EXPENSE,CAC,NAME / DESCRIPTION WITHHELD,EXPS111,10
BEIS,ACAS,08/11/2021,COMPUTER HARDWARE,DDAT,RESTORE TECHNOLOGY,POIN111,702
BEIS,ACAS,08/11/2021,COMPUTER HARDWARE,DDAT,RESTORE TECHNOLOGY,POIN111,78
BEIS,ACAS,16/12/2021,CONTRACTOR OFF-PAYROLL IN IR35,DELIVERY,ALEXANDER MANN SOLUTIONS LTD,POIN112,3780.36
BEIS,ACAS,25/11/2021,PROFESSIONAL FEES,FEP,GOVERNMENT PROPERTY AGENCY,PINV112,6259.92
BEIS,ACAS,25/11/2021,RATES,FEP,GOVERNMENT PROPERTY AGENCY,PINV112,10327.3
BEIS,ACAS,25/11/2021,SERVICE CHARGES,FEP,GOVERNMENT PROPERTY AGENCY,PINV112,10336.39
BEIS,ACAS,25/11/2021,FACILITIES MANAGEMENT,FEP,GOVERNMENT PROPERTY AGENCY,PINV112,39087.96
BEIS,ACAS,25/11/2021,Lease Liability,FEP,GOVERNMENT PROPERTY AGENCY,PINV112,33099
BEIS,ACAS,16/12/2021,AGENCY STAFF,ODHR,ALEXANDER MANN SOLUTIONS LTD,POIN113,2520.24
BEIS,ACAS,25/11/2021,RATES,FEP,GOVERNMENT PROPERTY AGENCY,PINV113,2875
BEIS,ACAS,25/11/2021,SERVICE CHARGES,FEP,GOVERNMENT PROPERTY AGENCY,PINV113,14309.99
BEIS,ACAS,25/11/2021,PROFESSIONAL FEES,FEP,GOVERNMENT PROPERTY AGENCY,PINV113,3932.1
BEIS,ACAS,25/11/2021,Lease Liability,FEP,GOVERNMENT PROPERTY AGENCY,PINV113,9634.5
BEIS,ACAS,30/11/2021,MANAGED SERVICE Off-PAYROLL WK,DELIVERY,TISSKI LTD,POIN114,41610
BEIS,ACAS,25/11/2021,RATES,FEP,GOVERNMENT PROPERTY AGENCY,PINV114,21099.83
BEIS,ACAS,25/11/2021,Lease Liability,FEP,GOVERNMENT PROPERTY AGENCY,PINV114,86043.05
BEIS,ACAS,15/12/2021,GOVT SOLICITORS FEES,CO,GOVERNMENT LEGAL DEPARTMENT,POIN115,2147.04
BEIS,ACAS,09/12/2021,PERSONAL EXPENSE,WALES&MID,NAME / DESCRIPTION WITHHELD,EXPS115,357.3
BEIS,ACAS,09/12/2021,PERSONAL EXPENSE,WALES&MID,NAME / DESCRIPTION WITHHELD,EXPS115,117
BEIS,ACAS,09/12/2021,PERSONAL EXPENSE,WALES&MID,NAME / DESCRIPTION WITHHELD,EXPS115,15
BEIS,ACAS,09/12/2021,PERSONAL EXPENSE,WALES&MID,NAME / DESCRIPTION WITHHELD,EXPS115,5
BEIS,ACAS,09/12/2021,PERSONAL EXPENSE,WALES&MID,NAME / DESCRIPTION WITHHELD,EXPS115,64.5
BEIS,ACAS,25/11/2021,RATES,FEP,GOVERNMENT PROPERTY AGENCY,PINV115,28338
BEIS,ACAS,25/11/2021,RATES,FEP,GOVERNMENT PROPERTY AGENCY,PINV115,16644
BEIS,ACAS,25/11/2021,RATES,FEP,GOVERNMENT PROPERTY AGENCY,PINV115,2193.49
BEIS,ACAS,25/11/2021,SERVICE CHARGES,FEP,GOVERNMENT PROPERTY AGENCY,PINV115,2377.89
BEIS,ACAS,25/11/2021,SERVICE CHARGES,FEP,GOVERNMENT PROPERTY AGENCY,PINV115,18060
BEIS,ACAS,25/11/2021,SERVICE CHARGES,FEP,GOVERNMENT PROPERTY AGENCY,PINV115,30750
BEIS,ACAS,25/11/2021,FACILITIES MANAGEMENT,FEP,GOVERNMENT PROPERTY AGENCY,PINV115,406.8
BEIS,ACAS,25/11/2021,FACILITIES MANAGEMENT,FEP,GOVERNMENT PROPERTY AGENCY,PINV115,237.6
BEIS,ACAS,25/11/2021,FACILITIES MANAGEMENT,FEP,GOVERNMENT PROPERTY AGENCY,PINV115,31.97
BEIS,ACAS,25/11/2021,PROFESSIONAL FEES,FEP,GOVERNMENT PROPERTY AGENCY,PINV115,182.8
BEIS,ACAS,25/11/2021,PROFESSIONAL FEES,FEP,GOVERNMENT PROPERTY AGENCY,PINV115,3749.3
BEIS,ACAS,25/11/2021,Lease Liability,FEP,GOVERNMENT PROPERTY AGENCY,PINV115,5230.99
BEIS,ACAS,25/11/2021,Lease Liability,FEP,GOVERNMENT PROPERTY AGENCY,PINV115,67575.44
BEIS,ACAS,25/11/2021,Lease Liability,FEP,GOVERNMENT PROPERTY AGENCY,PINV115,39687.16
BEIS,ACAS,25/11/2021,Lease Liability,FEP,GOVERNMENT PROPERTY AGENCY,PINV115,-4257.05
BEIS,ACAS,25/11/2021,Lease Liability,FEP,GOVERNMENT PROPERTY AGENCY,PINV115,-7249
BEIS,ACAS,25/11/2021,Lease Liability,FEP,GOVERNMENT PROPERTY AGENCY,PINV115,-561
BEIS,ACAS,09/12/2021,PERSONAL EXPENSE,DDAT,NAME / DESCRIPTION WITHHELD,EXPS116,6.7
BEIS,ACAS,09/12/2021,PERSONAL EXPENSE,DDAT,NAME / DESCRIPTION WITHHELD,EXPS116,10
BEIS,ACAS,09/12/2021,PERSONAL EXPENSE,DDAT,NAME / DESCRIPTION WITHHELD,EXPS116,726.6
BEIS,ACAS,25/11/2021,PROFESSIONAL FEES,FEP,GOVERNMENT PROPERTY AGENCY,PINV116,1530
BEIS,ACAS,25/11/2021,Lease Liability,FEP,GOVERNMENT PROPERTY AGENCY,PINV116,4427
BEIS,ACAS,16/12/2021,AGENCY STAFF,FEP,PORTFOLIO PAYROLL LTD,POIN117,810
BEIS,ACAS,25/11/2021,RATES,FEP,GOVERNMENT PROPERTY AGENCY,PINV117,29056
BEIS,ACAS,25/11/2021,PROFESSIONAL FEES,FEP,GOVERNMENT PROPERTY AGENCY,PINV117,7922.65
BEIS,ACAS,25/11/2021,SERVICE CHARGES,FEP,GOVERNMENT PROPERTY AGENCY,PINV117,55397.42
BEIS,ACAS,25/11/2021,FACILITIES MANAGEMENT,FEP,GOVERNMENT PROPERTY AGENCY,PINV117,37080
BEIS,ACAS,25/11/2021,Lease Liability,FEP,GOVERNMENT PROPERTY AGENCY,PINV117,107421.3
BEIS,ACAS,02/12/2021,AGENCY STAFF,FEP,PORTFOLIO PAYROLL LTD,POIN118,486
BEIS,ACAS,09/12/2021,CONTRACTOR OFF-PAYROLL IN IR35,DELIVERY,ALEXANDER MANN SOLUTIONS LTD,POIN120,2833.3
BEIS,ACAS,01/12/2021,PUBLICITY,STRATEGY,CISION,PINV120,2670
BEIS,ACAS,09/12/2021,PUBLIC TRANSPORT & PARKING,ODHR,TRAINLINE.COM LTD,PINV121,31.8
BEIS,ACAS,09/12/2021,PUBLIC TRANSPORT & PARKING,DDAT,TRAINLINE.COM LTD,PINV121,102.3
BEIS,ACAS,09/12/2021,PUBLIC TRANSPORT & PARKING,ODHR,TRAINLINE.COM LTD,PINV121,261.2
BEIS,ACAS,09/12/2021,PUBLIC TRANSPORT & PARKING,ODHR,TRAINLINE.COM LTD,PINV121,369
BEIS,ACAS,09/12/2021,PUBLIC TRANSPORT & PARKING,DDAT,TRAINLINE.COM LTD,PINV121,27.5
BEIS,ACAS,09/12/2021,PUBLIC TRANSPORT & PARKING,DDAT,TRAINLINE.COM LTD,PINV121,44.5
BEIS,ACAS,09/12/2021,PUBLIC TRANSPORT & PARKING,SPPC,TRAINLINE.COM LTD,PINV121,87.9
BEIS,ACAS,09/12/2021,PUBLIC TRANSPORT & PARKING,SPPC,TRAINLINE.COM LTD,PINV121,97
BEIS,ACAS,09/12/2021,PUBLIC TRANSPORT & PARKING,NORTH&MID,TRAINLINE.COM LTD,PINV121,42.4
BEIS,ACAS,09/12/2021,PUBLIC TRANSPORT & PARKING,SPPC,TRAINLINE.COM LTD,PINV121,122
BEIS,ACAS,09/12/2021,PUBLIC TRANSPORT & PARKING,SOUTH&LONDON,TRAINLINE.COM LTD,PINV121,18.8
BEIS,ACAS,09/12/2021,PUBLIC TRANSPORT & PARKING,SOUTH&LONDON,TRAINLINE.COM LTD,PINV121,14.4
BEIS,ACAS,09/12/2021,PUBLIC TRANSPORT & PARKING,SPPC,TRAINLINE.COM LTD,PINV121,151
BEIS,ACAS,09/12/2021,PUBLIC TRANSPORT & PARKING,SPPC,TRAINLINE.COM LTD,PINV121,90.5
BEIS,ACAS,09/12/2021,PUBLIC TRANSPORT & PARKING,DELIVERY,TRAINLINE.COM LTD,PINV121,236
BEIS,ACAS,09/12/2021,PUBLIC TRANSPORT & PARKING,SPPC,TRAINLINE.COM LTD,PINV121,113.7
BEIS,ACAS,09/12/2021,PUBLIC TRANSPORT & PARKING,SPPC,TRAINLINE.COM LTD,PINV121,105.8
BEIS,ACAS,09/12/2021,PUBLIC TRANSPORT & PARKING,DDAT,TRAINLINE.COM LTD,PINV121,53
BEIS,ACAS,09/12/2021,PUBLIC TRANSPORT & PARKING,SPPC,TRAINLINE.COM LTD,PINV121,-95.8
BEIS,ACAS,09/12/2021,PUBLIC TRANSPORT & PARKING,SPPC,TRAINLINE.COM LTD,PINV121,76.7
BEIS,ACAS,09/12/2021,PUBLIC TRANSPORT & PARKING,SPPC,TRAINLINE.COM LTD,PINV121,62.5
BEIS,ACAS,09/12/2021,PUBLIC TRANSPORT & PARKING,ODHR,TRAINLINE.COM LTD,PINV121,56.3
BEIS,ACAS,09/12/2021,PUBLIC TRANSPORT & PARKING,SOUTH&LONDON,TRAINLINE.COM LTD,PINV121,53
BEIS,ACAS,09/12/2021,PUBLIC TRANSPORT & PARKING,DDAT,TRAINLINE.COM LTD,PINV121,49.2
BEIS,ACAS,09/12/2021,PUBLIC TRANSPORT & PARKING,DDAT,TRAINLINE.COM LTD,PINV121,54.4
BEIS,ACAS,09/12/2021,PUBLIC TRANSPORT & PARKING,SOUTH&LONDON,TRAINLINE.COM LTD,PINV121,236
BEIS,ACAS,09/12/2021,PUBLIC TRANSPORT & PARKING,SPPC,TRAINLINE.COM LTD,PINV121,-66.7
BEIS,ACAS,09/12/2021,PUBLIC TRANSPORT & PARKING,DELIVERY,TRAINLINE.COM LTD,PINV121,47.7
BEIS,ACAS,09/12/2021,PUBLIC TRANSPORT & PARKING,DELIVERY,TRAINLINE.COM LTD,PINV121,25.1
BEIS,ACAS,09/12/2021,PUBLIC TRANSPORT & PARKING,SPPC,TRAINLINE.COM LTD,PINV121,87.9
BEIS,ACAS,09/12/2021,PUBLIC TRANSPORT & PARKING,SPPC,TRAINLINE.COM LTD,PINV121,97
BEIS,ACAS,09/12/2021,PUBLIC TRANSPORT & PARKING,DDAT,TRAINLINE.COM LTD,PINV121,94.5
BEIS,ACAS,09/12/2021,PUBLIC TRANSPORT & PARKING,SOUTH&LONDON,TRAINLINE.COM LTD,PINV121,128.3
BEIS,ACAS,09/12/2021,PUBLIC TRANSPORT & PARKING,SPPC,TRAINLINE.COM LTD,PINV121,98.5
BEIS,ACAS,09/12/2021,PUBLIC TRANSPORT & PARKING,SPPC,TRAINLINE.COM LTD,PINV121,64.6
BEIS,ACAS,09/12/2021,PUBLIC TRANSPORT & PARKING,SPPC,TRAINLINE.COM LTD,PINV121,93.3
BEIS,ACAS,09/12/2021,PUBLIC TRANSPORT & PARKING,SPPC,TRAINLINE.COM LTD,PINV121,62.5
BEIS,ACAS,09/12/2021,PUBLIC TRANSPORT & PARKING,DELIVERY,TRAINLINE.COM LTD,PINV121,70.1
BEIS,ACAS,09/12/2021,PUBLIC TRANSPORT & PARKING,DELIVERY,TRAINLINE.COM LTD,PINV121,115.4
BEIS,ACAS,09/12/2021,PUBLIC TRANSPORT & PARKING,DELIVERY,TRAINLINE.COM LTD,PINV121,51.5
BEIS,ACAS,09/12/2021,PUBLIC TRANSPORT & PARKING,DELIVERY,TRAINLINE.COM LTD,PINV121,105.7
BEIS,ACAS,09/12/2021,PUBLIC TRANSPORT & PARKING,DELIVERY,TRAINLINE.COM LTD,PINV121,38
BEIS,ACAS,09/12/2021,PUBLIC TRANSPORT & PARKING,SPPC,TRAINLINE.COM LTD,PINV121,66.9
BEIS,ACAS,09/12/2021,PUBLIC TRANSPORT & PARKING,SPPC,TRAINLINE.COM LTD,PINV121,97
BEIS,ACAS,09/12/2021,PUBLIC TRANSPORT & PARKING,SPPC,TRAINLINE.COM LTD,PINV121,87.9
BEIS,ACAS,09/12/2021,PUBLIC TRANSPORT & PARKING,SPPC,TRAINLINE.COM LTD,PINV121,97
BEIS,ACAS,09/12/2021,PUBLIC TRANSPORT & PARKING,DDAT,TRAINLINE.COM LTD,PINV121,73
BEIS,ACAS,09/12/2021,PUBLIC TRANSPORT & PARKING,DDAT,TRAINLINE.COM LTD,PINV121,39.6
BEIS,ACAS,09/12/2021,PUBLIC TRANSPORT & PARKING,SPPC,TRAINLINE.COM LTD,PINV121,58.25
BEIS,ACAS,09/12/2021,PUBLIC TRANSPORT & PARKING,SPPC,TRAINLINE.COM LTD,PINV121,44.35
BEIS,ACAS,09/12/2021,PUBLIC TRANSPORT & PARKING,SPPC,TRAINLINE.COM LTD,PINV121,139.4
BEIS,ACAS,09/12/2021,PUBLIC TRANSPORT & PARKING,SPPC,TRAINLINE.COM LTD,PINV121,40.5
BEIS,ACAS,09/12/2021,PUBLIC TRANSPORT & PARKING,DELIVERY,TRAINLINE.COM LTD,PINV121,61.6
BEIS,ACAS,09/12/2021,PUBLIC TRANSPORT & PARKING,DELIVERY,TRAINLINE.COM LTD,PINV121,31.3
BEIS,ACAS,09/12/2021,PUBLIC TRANSPORT & PARKING,STRATEGY,TRAINLINE.COM LTD,PINV121,160.5
BEIS,ACAS,09/12/2021,PUBLIC TRANSPORT & PARKING,STRATEGY,TRAINLINE.COM LTD,PINV121,43
BEIS,ACAS,09/12/2021,CONTRACTOR OFF-PAYROLL IN IR35,DELIVERY,ALEXANDER MANN SOLUTIONS LTD,POIN121,3402.32
BEIS,ACAS,14/12/2021,TELEPHONES,DDAT,ATOS IT SERVICES UK LIMITED,POIN122,50.06
BEIS,ACAS,14/12/2021,SOFTWARE & LICENCES,DDAT,ATOS IT SERVICES UK LIMITED,POIN122,12331.31
BEIS,ACAS,13/12/2021,PERSONAL EXPENSE,SOUTH&LONDON,NAME / DESCRIPTION WITHHELD,EXPS122,359.1
BEIS,ACAS,13/12/2021,PERSONAL EXPENSE,SOUTH&LONDON,NAME / DESCRIPTION WITHHELD,EXPS122,68.4
BEIS,ACAS,13/12/2021,PERSONAL EXPENSE,SOUTH&LONDON,NAME / DESCRIPTION WITHHELD,EXPS122,10
BEIS,ACAS,13/12/2021,PERSONAL EXPENSE,SOUTH&LONDON,NAME / DESCRIPTION WITHHELD,EXPS122,70
BEIS,ACAS,13/12/2021,PERSONAL EXPENSE,SOUTH&LONDON,NAME / DESCRIPTION WITHHELD,EXPS122,40
BEIS,ACAS,13/12/2021,PERSONAL EXPENSE,SOUTH&LONDON,NAME / DESCRIPTION WITHHELD,EXPS122,10.9
BEIS,ACAS,13/12/2021,PERSONAL EXPENSE,SOUTH&LONDON,NAME / DESCRIPTION WITHHELD,EXPS122,10
BEIS,ACAS,20/12/2021,PROFESSIONAL FEES,DDAT,GOSS INTERACTIVE LTD,POIN123,13608
BEIS,ACAS,30/11/2021,OTHER PAYROLL COSTS,CENTRE,EDENRED (UK GROUP ) LTD,PINV123,8990
BEIS,ACAS,14/12/2021,PROFESSIONAL FEES,DDAT,ATOS IT SERVICES UK LIMITED,POIN124,4930.79
BEIS,ACAS,02/12/2021,PUBLICITY,STRATEGY,CISION,PINV124,720
BEIS,ACAS,21/12/2021,PROFESSIONAL FEES,DDAT,TISSKI LTD,POIN125,6340
BEIS,ACAS,09/12/2021,MOBILE PHONES,DDAT,TELEFONICA UK LTD (O2),PINV125,5209.36
BEIS,ACAS,09/12/2021,MOBILE PHONES,DDAT,TELEFONICA UK LTD (O2),PINV125,578.82
BEIS,ACAS,21/12/2021,EXTERNAL LEARNING,ODHR,HEMSLEY FRASER GROUP LTD,POIN126,2400
BEIS,ACAS,01/12/2021,TELEPHONES,DDAT,CENTURYLINK COMMUNICATIONS UK LIMITED,PINV126,3162.2
BEIS,ACAS,01/12/2021,TELEPHONES,DDAT,CENTURYLINK COMMUNICATIONS UK LIMITED,PINV126,351.31
BEIS,ACAS,01/12/2021,SOFTWARE & LICENCES,DDAT,CENTURYLINK COMMUNICATIONS UK LIMITED,PINV126,4396.2
BEIS,ACAS,01/12/2021,SOFTWARE & LICENCES,DDAT,CENTURYLINK COMMUNICATIONS UK LIMITED,PINV126,488.47
BEIS,ACAS,22/12/2021,AGENCY STAFF,ODHR,ALEXANDER MANN SOLUTIONS LTD,POIN127,2520.24
BEIS,ACAS,02/12/2021,SOFTWARE & LICENCES,DELIVERY,BIG BLUE DOOR,PINV127,2400
BEIS,ACAS,22/12/2021,CONTRACTOR OFF-PAYROLL IN IR35,DELIVERY,ALEXANDER MANN SOLUTIONS LTD,POIN128,8007.12
BEIS,ACAS,09/12/2021,AGENCY STAFF,NORTH&MID,ALEXANDER MANN SOLUTIONS LTD,PINV128,638.03
BEIS,ACAS,22/12/2021,CONTRACTOR OFF-PAYROLL IN IR35,DELIVERY,ALEXANDER MANN SOLUTIONS LTD,POIN129,3780.36
BEIS,ACAS,09/12/2021,AGENCY STAFF,NORTH&MID,ALEXANDER MANN SOLUTIONS LTD,PINV129,517.32
BEIS,ACAS,22/12/2021,CONTRACTOR OFF-PAYROLL IN IR35,DELIVERY,ALEXANDER MANN SOLUTIONS LTD,POIN130,4958.27
BEIS,ACAS,02/12/2021,EXTERNAL LEARNING,ODHR,ESSENTIALSKILZ,PINV130,2419.2
BEIS,ACAS,10/12/2021,VENUE HIRE (REC VAT),WALES&MID,CALDER CONFERENCES LTD,PINV131,290
BEIS,ACAS,10/12/2021,CATERING,WALES&MID,CALDER CONFERENCES LTD,PINV131,51
BEIS,ACAS,10/12/2021,VENUE HIRE (REC VAT),WALES&MID,CALDER CONFERENCES LTD,PINV131,400
BEIS,ACAS,10/12/2021,VENUE HIRE (REC VAT),NORTH&MID,CALDER CONFERENCES LTD,PINV131,144
BEIS,ACAS,10/12/2021,CATERING,NORTH&MID,CALDER CONFERENCES LTD,PINV131,36
BEIS,ACAS,10/12/2021,VENUE HIRE (REC VAT),NORTH&MID,CALDER CONFERENCES LTD,PINV131,370
BEIS,ACAS,08/12/2021,AGENCY STAFF,SPPC,ALEXANDER MANN SOLUTIONS LTD,PINV132,895.1
BEIS,ACAS,14/12/2021,CHILDCARE VOUCHERS,FEP,EDENRED CHILDCARE VOUCHERS LTD,PINV133,2545
BEIS,ACAS,13/12/2021,AGENCY STAFF,FEP,MICHAEL PAGE,PINV134,1034.21
BEIS,ACAS,14/12/2021,REFUNDS,WALES&MID,NOTTINGHAM CITY GP ALLIANCE,PINV135,2055
BEIS,ACAS,16/08/2021,REFUNDS,SOUTH&LONDON,PLAN LIMITED,PINV136,8260
BEIS,ACAS,16/12/2021,PERSONAL EXPENSE,DELIVERY,NAME / DESCRIPTION WITHHELD,EXPS137,1220.05
BEIS,ACAS,17/12/2021,PERSONAL EXPENSE,SOUTH&LONDON,NAME / DESCRIPTION WITHHELD,EXPS139,215.55
BEIS,ACAS,17/12/2021,PERSONAL EXPENSE,SOUTH&LONDON,NAME / DESCRIPTION WITHHELD,EXPS139,2.45
BEIS,ACAS,17/12/2021,PERSONAL EXPENSE,SOUTH&LONDON,NAME / DESCRIPTION WITHHELD,EXPS139,25
BEIS,ACAS,17/12/2021,PERSONAL EXPENSE,SOUTH&LONDON,NAME / DESCRIPTION WITHHELD,EXPS139,20
BEIS,ACAS,17/12/2021,PERSONAL EXPENSE,SOUTH&LONDON,NAME / DESCRIPTION WITHHELD,EXPS139,175
BEIS,ACAS,30/07/2021,REFUNDS,SCOTLAND,G AND M PROCTER LIMITED,PINV145,2568
BEIS,ACAS,02/11/2021,OCCUPATIONAL HEALTH SERVICE,ODHR,HEALTH MANAGEMENT LTD,PINV146,835.32
BEIS,ACAS,12/11/2021,REFUNDS,WALES&MID,CARDIFF AND VALE COLLEGE,PINV147,2568
BEIS,ACAS,16/12/2021,AGENCY STAFF,NORTH&MID,ALEXANDER MANN SOLUTIONS LTD,PINV148,638.03
BEIS,ACAS,17/12/2021,REFUNDS,NORTH&MID,DERBYSHIRE COMMUNITY HEALTH SERVICES,PINV149,255
BEIS,ACAS,17/12/2021,REFUNDS,NORTH&MID,LIME ACADEMY ORTON,PINV151,255
BEIS,ACAS,23/12/2021,PERSONAL EXPENSE,DELIVERY,NAME / DESCRIPTION WITHHELD,EXPS154,450.89
BEIS,ACAS,17/12/2021,REFUNDS,SOUTH&LONDON,FIRST GREATER WESTERN LIMITED,PINV156,2055
BEIS,ACAS,21/12/2021,PERSONAL EXPENSE,SOUTH&LONDON,NAME / DESCRIPTION WITHHELD,EXPS157,110.51
BEIS,ACAS,21/12/2021,PERSONAL EXPENSE,SOUTH&LONDON,NAME / DESCRIPTION WITHHELD,EXPS157,30
BEIS,ACAS,21/12/2021,PERSONAL EXPENSE,SOUTH&LONDON,NAME / DESCRIPTION WITHHELD,EXPS157,293.4
BEIS,ACAS,21/12/2021,PERSONAL EXPENSE,SOUTH&LONDON,NAME / DESCRIPTION WITHHELD,EXPS157,25
BEIS,ACAS,21/12/2021,PERSONAL EXPENSE,SOUTH&LONDON,NAME / DESCRIPTION WITHHELD,EXPS157,5
BEIS,ACAS,21/12/2021,PERSONAL EXPENSE,SOUTH&LONDON,NAME / DESCRIPTION WITHHELD,EXPS157,30
BEIS,ACAS,21/12/2021,PERSONAL EXPENSE,SOUTH&LONDON,NAME / DESCRIPTION WITHHELD,EXPS157,10
BEIS,ACAS,21/12/2021,PERSONAL EXPENSE,SOUTH&LONDON,NAME / DESCRIPTION WITHHELD,EXPS157,5.3
BEIS,ACAS,16/12/2021,AGENCY STAFF,NORTH&MID,ALEXANDER MANN SOLUTIONS LTD,PINV157,517.32
BEIS,ACAS,23/12/2021,PERSONAL EXPENSE,DELIVERY,NAME / DESCRIPTION WITHHELD,EXPS164,450.89
BEIS,ACAS,17/12/2021,VENUE HIRE (REC VAT),SOUTH&LONDON,CALDER CONFERENCES LTD,PINV165,504
BEIS,ACAS,17/12/2021,VENUE HIRE (REC VAT),SOUTH&LONDON,CALDER CONFERENCES LTD,PINV165,18
BEIS,ACAS,17/12/2021,VENUE HIRE (REC VAT),NORTH&MID,CALDER CONFERENCES LTD,PINV165,330
BEIS,ACAS,17/12/2021,CONFERENCE COSTS [NON - STAFF],CAC,CALDER CONFERENCES LTD,PINV165,612
BEIS,ACAS,17/12/2021,CONFERENCE COSTS [NON - STAFF],CAC,CALDER CONFERENCES LTD,PINV165,87.04
BEIS,ACAS,15/12/2021,GOVT SOLICITORS FEES,STRATEGY,GOVERNMENT LEGAL DEPARTMENT,PINV172,329.04
BEIS,ACAS,21/12/2021,HOTEL EXPENSES,SOUTH&LONDON,CORPORATE TRAVEL MANAGEMENTLIMITED,PINV174,125.4
BEIS,ACAS,21/12/2021,HOTEL EXPENSES,SOUTH&LONDON,CORPORATE TRAVEL MANAGEMENTLIMITED,PINV174,145.4
BEIS,ACAS,21/12/2021,HOTEL EXPENSES,NORTH&MID,CORPORATE TRAVEL MANAGEMENTLIMITED,PINV174,121.92
BEIS,ACAS,21/12/2021,HOTEL EXPENSES,SOUTH&LONDON,CORPORATE TRAVEL MANAGEMENTLIMITED,PINV174,72.62
BEIS,ACAS,21/12/2021,HOTEL EXPENSES,WALES&MID,CORPORATE TRAVEL MANAGEMENTLIMITED,PINV174,0.96
BEIS,ACAS,21/12/2021,HOTEL EXPENSES,WALES&MID,CORPORATE TRAVEL MANAGEMENTLIMITED,PINV174,0.96
BEIS,ACAS,21/12/2021,HOTEL EXPENSES,WALES&MID,CORPORATE TRAVEL MANAGEMENTLIMITED,PINV174,0.96
BEIS,ACAS,21/12/2021,HOTEL EXPENSES,DELIVERY,CORPORATE TRAVEL MANAGEMENTLIMITED,PINV174,179.12
BEIS,ACAS,21/12/2021,HOTEL EXPENSES,DELIVERY,CORPORATE TRAVEL MANAGEMENTLIMITED,PINV174,268.12
BEIS,ACAS,21/12/2021,HOTEL EXPENSES,SOUTH&LONDON,CORPORATE TRAVEL MANAGEMENTLIMITED,PINV174,145.4
BEIS,ACAS,21/12/2021,HOTEL EXPENSES,SOUTH&LONDON,CORPORATE TRAVEL MANAGEMENTLIMITED,PINV174,0.96
BEIS,ACAS,21/12/2021,HOTEL EXPENSES,SOUTH&LONDON,CORPORATE TRAVEL MANAGEMENTLIMITED,PINV174,45.4
BEIS,ACAS,21/12/2021,HOTEL EXPENSES,ODHR,CORPORATE TRAVEL MANAGEMENTLIMITED,PINV174,115.12
BEIS,ACAS,21/12/2021,HOTEL EXPENSES,SOUTH&LONDON,CORPORATE TRAVEL MANAGEMENTLIMITED,PINV174,125.4
BEIS,ACAS,21/12/2021,HOTEL EXPENSES,SPPC,CORPORATE TRAVEL MANAGEMENTLIMITED,PINV174,541.12
BEIS,ACAS,21/12/2021,HOTEL EXPENSES,ODHR,CORPORATE TRAVEL MANAGEMENTLIMITED,PINV174,229.12
BEIS,ACAS,21/12/2021,HOTEL EXPENSES,SOUTH&LONDON,CORPORATE TRAVEL MANAGEMENTLIMITED,PINV174,72.62
BEIS,ACAS,21/12/2021,HOTEL EXPENSES,DELIVERY,CORPORATE TRAVEL MANAGEMENTLIMITED,PINV174,1.12
BEIS,ACAS,21/12/2021,HOTEL EXPENSES,SOUTH&LONDON,CORPORATE TRAVEL MANAGEMENTLIMITED,PINV174,-125.4
BEIS,ACAS,21/12/2021,HOTEL EXPENSES,SOUTH&LONDON,CORPORATE TRAVEL MANAGEMENTLIMITED,PINV174,-145.4
BEIS,ACAS,21/12/2021,HOTEL EXPENSES,NORTH&MID,CORPORATE TRAVEL MANAGEMENTLIMITED,PINV174,-121.92
BEIS,ACAS,21/12/2021,HOTEL EXPENSES,SOUTH&LONDON,CORPORATE TRAVEL MANAGEMENTLIMITED,PINV174,-72.62
BEIS,ACAS,21/12/2021,HOTEL EXPENSES,WALES&MID,CORPORATE TRAVEL MANAGEMENTLIMITED,PINV174,-0.96
BEIS,ACAS,21/12/2021,HOTEL EXPENSES,WALES&MID,CORPORATE TRAVEL MANAGEMENTLIMITED,PINV174,-0.96
BEIS,ACAS,21/12/2021,HOTEL EXPENSES,WALES&MID,CORPORATE TRAVEL MANAGEMENTLIMITED,PINV174,-0.96
BEIS,ACAS,21/12/2021,HOTEL EXPENSES,DELIVERY,CORPORATE TRAVEL MANAGEMENTLIMITED,PINV174,-179.12
BEIS,ACAS,21/12/2021,HOTEL EXPENSES,DELIVERY,CORPORATE TRAVEL MANAGEMENTLIMITED,PINV174,-268.12
BEIS,ACAS,21/12/2021,HOTEL EXPENSES,SOUTH&LONDON,CORPORATE TRAVEL MANAGEMENTLIMITED,PINV174,-145.4
BEIS,ACAS,21/12/2021,HOTEL EXPENSES,SOUTH&LONDON,CORPORATE TRAVEL MANAGEMENTLIMITED,PINV174,-0.96
BEIS,ACAS,21/12/2021,HOTEL EXPENSES,SOUTH&LONDON,CORPORATE TRAVEL MANAGEMENTLIMITED,PINV174,-45.4
BEIS,ACAS,21/12/2021,HOTEL EXPENSES,ODHR,CORPORATE TRAVEL MANAGEMENTLIMITED,PINV174,-115.12
BEIS,ACAS,21/12/2021,HOTEL EXPENSES,SOUTH&LONDON,CORPORATE TRAVEL MANAGEMENTLIMITED,PINV174,-125.4
BEIS,ACAS,21/12/2021,HOTEL EXPENSES,SPPC,CORPORATE TRAVEL MANAGEMENTLIMITED,PINV174,-541.12
BEIS,ACAS,21/12/2021,HOTEL EXPENSES,ODHR,CORPORATE TRAVEL MANAGEMENTLIMITED,PINV174,-229.12
BEIS,ACAS,21/12/2021,HOTEL EXPENSES,SOUTH&LONDON,CORPORATE TRAVEL MANAGEMENTLIMITED,PINV174,-72.62
BEIS,ACAS,21/12/2021,HOTEL EXPENSES,DELIVERY,CORPORATE TRAVEL MANAGEMENTLIMITED,PINV174,-1.12
BEIS,ACAS,11/11/2021,AGENCY STAFF,SPPC,ALEXANDER MANN SOLUTIONS LTD,PINV175,1790.21
BEIS,ACAS,31/08/2021,PROFESSIONAL FEES,DDAT,VERSION 1 SOLUTIONS LTD,PINV176,6850
BEIS,ACAS,22/12/2021,REFUNDS,SCOTLAND,NATWEST PLC,PINV181,2055
BEIS,ACAS,21/12/2021,GPS ONLINE BOOKINGS,WALES&MID,LIVING SPORT,PINV184,255
BEIS,ACAS,21/12/2021,REFUNDS,SOUTH&LONDON,LEXHAM INSURANCE CONSULTANTS LTD,PINV189,350
BEIS,ACAS,21/12/2021,REFUNDS,SOUTH&LONDON,GKN AEROSPACE SERVICES LTD,PINV190,255
BEIS,ACAS,21/12/2021,REFUNDS,NORTH&MID,UNIVERSITY OF NOTTINGHAM STUDENTS� UNION,PINV191,255
BEIS,ACAS,15/12/2021,OTHER PAYROLL COSTS,CENTRE,EDENRED (UK GROUP ) LTD,PINV192,4450
BEIS,ACAS,22/12/2021,AGENCY STAFF,SPPC,ALEXANDER MANN SOLUTIONS LTD,PINV193,895.1
BEIS,ACAS,15/12/2021,GOVT SOLICITORS FEES,ODHR,GOVERNMENT LEGAL DEPARTMENT,PINV194,9039.84
BEIS,ACAS,22/12/2021,AGENCY STAFF,NORTH&MID,ALEXANDER MANN SOLUTIONS LTD,PINV195,638.03
BEIS,ACAS,22/12/2021,AGENCY STAFF,NORTH&MID,ALEXANDER MANN SOLUTIONS LTD,PINV196,517.32
BEIS,ACAS,24/12/2021,PUBLIC TRANSPORT & PARKING,NORTH&MID,CORPORATE TRAVEL MANAGEMENTLIMITED,PINV204,89.38
BEIS,ACAS,24/12/2021,PUBLIC TRANSPORT & PARKING,NORTH&MID,CORPORATE TRAVEL MANAGEMENTLIMITED,PINV204,77.48
BEIS,ACAS,24/12/2021,PUBLIC TRANSPORT & PARKING,NORTH&MID,CORPORATE TRAVEL MANAGEMENTLIMITED,PINV204,64.98
BEIS,ACAS,24/12/2021,PUBLIC TRANSPORT & PARKING,NORTH&MID,CORPORATE TRAVEL MANAGEMENTLIMITED,PINV204,64.98
BEIS,ACAS,24/12/2021,HOTEL EXPENSES,SOUTH&LONDON,CORPORATE TRAVEL MANAGEMENTLIMITED,PINV204,75.63
BEIS,ACAS,24/12/2021,HOTEL EXPENSES,SOUTH&LONDON,CORPORATE TRAVEL MANAGEMENTLIMITED,PINV204,59.3
BEIS,ACAS,24/12/2021,HOTEL EXPENSES,WALES&MID,CORPORATE TRAVEL MANAGEMENTLIMITED,PINV204,113.62
BEIS,ACAS,24/12/2021,HOTEL EXPENSES,DDAT,CORPORATE TRAVEL MANAGEMENTLIMITED,PINV204,79.56
BEIS,ACAS,24/12/2021,HOTEL EXPENSES,DDAT,CORPORATE TRAVEL MANAGEMENTLIMITED,PINV204,79.56
BEIS,ACAS,24/12/2021,HOTEL EXPENSES,SPPC,CORPORATE TRAVEL MANAGEMENTLIMITED,PINV204,160.12
BEIS,ACAS,24/12/2021,HOTEL EXPENSES,SPPC,CORPORATE TRAVEL MANAGEMENTLIMITED,PINV204,121.12
BEIS,ACAS,24/12/2021,HOTEL EXPENSES,SOUTH&LONDON,CORPORATE TRAVEL MANAGEMENTLIMITED,PINV204,0.96
BEIS,ACAS,24/12/2021,HOTEL EXPENSES,SPPC,CORPORATE TRAVEL MANAGEMENTLIMITED,PINV204,121.12
BEIS,ACAS,24/12/2021,HOTEL EXPENSES,ODHR,CORPORATE TRAVEL MANAGEMENTLIMITED,PINV204,113.62
BEIS,ACAS,24/12/2021,HOTEL EXPENSES,NORTH&MID,CORPORATE TRAVEL MANAGEMENTLIMITED,PINV204,206.29
BEIS,ACAS,24/12/2021,HOTEL EXPENSES,DELIVERY,CORPORATE TRAVEL MANAGEMENTLIMITED,PINV204,141.75
BEIS,ACAS,24/12/2021,HOTEL EXPENSES,DDAT,CORPORATE TRAVEL MANAGEMENTLIMITED,PINV204,130.12
BEIS,ACAS,24/12/2021,HOTEL EXPENSES,SPPC,CORPORATE TRAVEL MANAGEMENTLIMITED,PINV204,121.12
BEIS,ACAS,24/12/2021,HOTEL EXPENSES,SPPC,CORPORATE TRAVEL MANAGEMENTLIMITED,PINV204,242.8
BEIS,ACAS,24/12/2021,HOTEL EXPENSES,NORTH&MID,CORPORATE TRAVEL MANAGEMENTLIMITED,PINV204,299.12
BEIS,ACAS,24/12/2021,HOTEL EXPENSES,SOUTH&LONDON,CORPORATE TRAVEL MANAGEMENTLIMITED,PINV204,115.56
BEIS,ACAS,24/12/2021,HOTEL EXPENSES,SPPC,CORPORATE TRAVEL MANAGEMENTLIMITED,PINV204,136.12
BEIS,ACAS,24/12/2021,HOTEL EXPENSES,NORTH&MID,CORPORATE TRAVEL MANAGEMENTLIMITED,PINV204,237.4
BEIS,ACAS,24/12/2021,HOTEL EXPENSES,CAC,CORPORATE TRAVEL MANAGEMENTLIMITED,PINV204,96.04
BEIS,ACAS,24/12/2021,HOTEL EXPENSES,CAC,CORPORATE TRAVEL MANAGEMENTLIMITED,PINV204,96.04
BEIS,ACAS,24/12/2021,HOTEL EXPENSES,SOUTH&LONDON,CORPORATE TRAVEL MANAGEMENTLIMITED,PINV204,75.63
BEIS,ACAS,24/12/2021,HOTEL EXPENSES,SCOTLAND,CORPORATE TRAVEL MANAGEMENTLIMITED,PINV204,88.62
BEIS,ACAS,24/12/2021,TELEPHONES,DDAT,CENTURYLINK COMMUNICATIONS UK LIMITED,PINV209,1123.68
BEIS,ACAS,24/12/2021,HIRE CAR COSTS,SOUTH&LONDON,ENTERPRISE RENT-A-CAR,PINV210,65.71
BEIS,ACAS,24/12/2021,HIRE CAR COSTS,SOUTH&LONDON,ENTERPRISE RENT-A-CAR,PINV210,65.71
BEIS,ACAS,24/12/2021,HIRE CAR COSTS,SOUTH&LONDON,ENTERPRISE RENT-A-CAR,PINV210,65.71
BEIS,ACAS,24/12/2021,HIRE CAR COSTS,SOUTH&LONDON,ENTERPRISE RENT-A-CAR,PINV210,70.51
BEIS,ACAS,24/12/2021,HIRE CAR COSTS,SOUTH&LONDON,ENTERPRISE RENT-A-CAR,PINV210,57.25
BEIS,ACAS,24/12/2021,HIRE CAR COSTS,SOUTH&LONDON,ENTERPRISE RENT-A-CAR,PINV210,168.17
BEIS,ACAS,24/12/2021,HIRE CAR PETROL,SOUTH&LONDON,ENTERPRISE RENT-A-CAR,PINV210,87.25
BEIS,ACAS,24/12/2021,HIRE CAR COSTS,NORTH&MID,ENTERPRISE RENT-A-CAR,PINV210,53.71
BEIS,ACAS,22/12/2021,RENTS,FEP,GOVERNMENT PROPERTY AGENCY,PINV212,5107
BEIS,ACAS,29/12/2021,SOFTWARE & LICENCES,DELIVERY,ZOOM VIDEO COMMUNICATIONS INC,PINV213,68.95
BEIS,ACAS,29/12/2021,SOFTWARE & LICENCES,DELIVERY,ZOOM VIDEO COMMUNICATIONS INC,PINV213,137.89
BEIS,ACAS,29/12/2021,SOFTWARE & LICENCES,ODHR,ZOOM VIDEO COMMUNICATIONS INC,PINV213,27.58
BEIS,ACAS,29/12/2021,SOFTWARE & LICENCES,DELIVERY,ZOOM VIDEO COMMUNICATIONS INC,PINV213,137.89
BEIS,ACAS,29/12/2021,SOFTWARE & LICENCES,DELIVERY,ZOOM VIDEO COMMUNICATIONS INC,PINV213,13.79
BEIS,ACAS,29/12/2021,SOFTWARE & LICENCES,SCOTLAND,ZOOM VIDEO COMMUNICATIONS INC,PINV213,110.32
BEIS,ACAS,29/12/2021,SOFTWARE & LICENCES,NORTH&MID,ZOOM VIDEO COMMUNICATIONS INC,PINV213,68.95
BEIS,ACAS,29/12/2021,SOFTWARE & LICENCES,NORTH&MID,ZOOM VIDEO COMMUNICATIONS INC,PINV213,124.11
BEIS,ACAS,29/12/2021,SOFTWARE & LICENCES,NORTH&MID,ZOOM VIDEO COMMUNICATIONS INC,PINV213,124.11
BEIS,ACAS,29/12/2021,SOFTWARE & LICENCES,NORTH&MID,ZOOM VIDEO COMMUNICATIONS INC,PINV213,110.32
BEIS,ACAS,29/12/2021,SOFTWARE & LICENCES,WALES&MID,ZOOM VIDEO COMMUNICATIONS INC,PINV213,151.69
BEIS,ACAS,29/12/2021,SOFTWARE & LICENCES,WALES&MID,ZOOM VIDEO COMMUNICATIONS INC,PINV213,110.32
BEIS,ACAS,29/12/2021,SOFTWARE & LICENCES,SOUTH&LONDON,ZOOM VIDEO COMMUNICATIONS INC,PINV213,96.53
BEIS,ACAS,29/12/2021,SOFTWARE & LICENCES,SOUTH&LONDON,ZOOM VIDEO COMMUNICATIONS INC,PINV213,137.89
BEIS,ACAS,29/12/2021,SOFTWARE & LICENCES,SOUTH&LONDON,ZOOM VIDEO COMMUNICATIONS INC,PINV213,124.11
BEIS,ACAS,29/12/2021,SOFTWARE & LICENCES,SOUTH&LONDON,ZOOM VIDEO COMMUNICATIONS INC,PINV213,96.53
BEIS,ACAS,29/12/2021,SOFTWARE & LICENCES,NORTH&MID,ZOOM VIDEO COMMUNICATIONS INC,PINV213,13.79
BEIS,ACAS,17/12/2021,REFUNDS,SOUTH&LONDON,NEATH PORT TALBOT COUNTY BOROUGH COUNCIL,PINV214,510
BEIS,ACAS,30/12/2021,MANAGED SERVICE Off-PAYROLL WK,FEP,MHR INTERNATIONAL UK LTD,PINV216,23994
BEIS,ACAS,29/12/2021,MANAGED SERVICE Off-PAYROLL WK,FEP,MHR INTERNATIONAL UK LTD,PINV217,1414.8
BEIS,ACAS,29/12/2021,MANAGED SERVICE Off-PAYROLL WK,FEP,MHR INTERNATIONAL UK LTD,PINV218,1080
BEIS,ACAS,30/12/2021,AGENCY STAFF,NORTH&MID,ALEXANDER MANN SOLUTIONS LTD,PINV220,508.7
BEIS,ACAS,30/12/2021,AGENCY STAFF,NORTH&MID,ALEXANDER MANN SOLUTIONS LTD,PINV221,517.32
BEIS,ACAS,23/12/2021,OPERATIONAL PLANNING EVENTS,LONDON & SE ENGLAND - S E,Highfield Park,H332120211224ipe,1045
BEIS,ACAS,22/12/2021,LOCAL EXTERNAL CONF & SEMINARS,WALES & MIDLANDS - WEST,Www.Westminster-Briefi,H332120211223fnv,1062
BEIS,ACAS,22/12/2021,COMPUTER HARDWARE ADDITIONS,IT SERVICES ,Amznmktplace,H332120211223pdg,355
BEIS,ACAS,20/12/2021,COMPUTER SOFTWARE,ACAS NATIONAL DELIVERY,Miro.Com,H332120211221fru,326.14
BEIS,ACAS,17/12/2021,MOBILE PHONES,IT SERVICES ,Xma Ltd,H332120211218xfh,2136.24
BEIS,ACAS,17/12/2021,COMPUTER HARDWARE,IT SERVICES ,Xma Ltd,H332120211218xfh,237.36
BEIS,ACAS,15/12/2021,COMPUTER SOFTWARE,IT SERVICES ,Atlassian,H332120211216qtj,351.26
BEIS,ACAS,14/12/2021,PUBLICITY,ACAS NATIONAL STRATEGY,Google *ads3155061282,H332120211215tep,5000
BEIS,ACAS,07/12/2021,VENUE HIRE,WALES & MIDLANDS - WEST,Leonardo St Pauls M And E,H332120211208cgd,153
BEIS,ACAS,07/12/2021,CATERING,WALES & MIDLANDS - WEST,Leonardo St Pauls M And E,H332120211208cgd,45
BEIS,ACAS,07/12/2021,CATERING,WALES & MIDLANDS - WEST,Leonardo St Pauls M And E,H332120211208cgd,65.7
BEIS,ACAS,06/12/2021,MEMBERSHIP FEES,FINANCE ESTATES & PEOPLE,Acca,H332120211207ceb,270
BEIS,ACAS,06/12/2021,VENUE HIRE,LONDON & SE ENGLAND - LONDON,Wellcome Trust,H332120211207qby,4071.57
BEIS,ACAS,06/12/2021,OTHER PROFESSIONAL FEES,IT SERVICES ,Aws Emea,H332120211207qqs,1924.12
BEIS,ACAS,03/12/2021,COMPUTER HARDWARE,IT SERVICES ,Xma Ltd,H332120211204dqk,707.76
BEIS,ACAS,03/12/2021,COURIERS,NORTH OF ENGLAND - YORKSHIRE,Dynamic Medical Logist,H332120211204hnn,420.72
BEIS,ACAS,03/12/2021,COURIERS,NORTH OF ENGLAND - YORKSHIRE,Dynamic Medical Logist,H332120211204hnn,87
BEIS,ACAS,03/12/2021,COURIERS,IT SERVICES ,Mach 1 Couriers,H332120211204opn,268.6
BEIS,ACAS,02/12/2021,STATIONERY & CONSUMABLES,CENTRAL ARBITRATION COMMITTEE,Amazon.Co.Uk,H332120211203jfx,422.95
BEIS,ACAS,02/12/2021,MEMBERSHIP FEES,ACAS NATIONAL STRATEGY,Www.The-Sra.Org.Uk,H332120211203yzn,529.2
BEIS,ACAS,01/12/2021,VENUE HIRE,WALES & MIDLANDS - WEST,Doubletree By Hilton Bri,H332120211202igc,385
BEIS,ACAS,01/12/2021,EXTERNAL LEARNING,FINANCE ESTATES & PEOPLE,Acca Events,H332120211202qgx,300
